bitfinex/quotes_SOLUSD_20220103
["timestamp","ask_amount","ask_price","bid_price","bid_amount"]
[1641207237688,3.26864962,174.24,174.17,1.2346]
[1641207240211,11.88154962,174.24,174.15,8.6129]
[1641207240610,11.88154962,174.24,174.15,8.8729]
[1641207240809,3.26864962,174.24,174.15,8.8729]
[1641207241213,3.26864962,174.24,174.15,8.6129]
[1641207241712,3.26864962,174.24,174.16,1.3127]
[1641207242311,4.52854962,174.24,174.16,1.3127]
[1641207242611,13.14144962,174.24,174.16,1.3127]
[1641207251524,12.88144962,174.24,174.16,1.3127]
[1641207251722,4.26854962,174.24,174.16,1.3127]
[1641207252924,4.52854962,174.24,174.16,1.3127]
[1641207253322,4.52854962,174.24,174.16,9.9251]
[1641207253925,4.52854962,174.24,174.16,1.3127]
[1641207254123,13.14144962,174.24,174.16,1.3127]
[1641207256929,13.64144962,174.24,174.16,1.3127]
[1641207261837,13.38144962,174.24,174.16,1.3127]
[1641207263039,13.64144962,174.24,174.16,1.3127]
[1641207267167,5.02854962,174.24,174.16,1.3127]
[1641207269369,4.52854962,174.24,174.16,1.3127]
[1641207272174,4.52854962,174.24,174.16,9.9252]
[1641207273676,4.52854962,174.24,174.16,1.3127]
[1641207273875,13.14164962,174.24,174.16,1.3127]
[1641207275776,13.64164962,174.24,174.16,1.3127]
[1641207278979,10.633,174.24,174.16,1.3127]
[1641207279178,1.7599,174.24,174.16,9.9252]
[1641207279984,1.2599,174.24,174.16,10.1852]
[1641207280186,7.61272481,174.26,174.16,10.1852]
[1641207280786,7.61272481,174.26,174.17,16.21651389]
[1641207280988,7.61272481,174.26,174.19,8.6108]
[1641207281587,7.61272481,174.26,174.14,36.8027]
[1641207281786,7.61272481,174.26,174.15,1.2306]
[1641207281990,7.87272481,174.26,174.15,1.4906]
[1641207282187,7.87272481,174.26,174.17,8.6115]
[1641207282391,3.45544468,174.25,174.17,8.6115]
[1641207282588,3.71544468,174.25,174.17,8.8715]
[1641207282789,3.71544468,174.25,174.17,21.67588561]
[1641207289022,3.71544468,174.25,174.17,8.6115]
[1641207290922,3.71544468,174.25,174.16,8.6124]
[1641207291122,12.32804468,174.25,174.16,8.6124]
[1641207292326,12.32804468,174.25,174.17,1.3104]
[1641207294229,12.82804468,174.25,174.17,1.3104]
[1641207294430,12.32804468,174.25,174.17,1.3104]
[1641207294630,12.82804468,174.25,174.17,1.3104]
[1641207295038,12.32804468,174.25,174.17,1.3104]
[1641207295333,12.82804468,174.25,174.17,1.3104]
[1641207296138,12.32804468,174.25,174.17,1.3104]
[1641207296334,12.82804468,174.25,174.17,1.3104]
[1641207296633,12.32804468,174.25,174.13,8.6135]
[1641207296836,20.92804468,174.25,174.13,9.8736]
[1641207297032,20.92804468,174.25,174.13,1.2601]
[1641207300042,20.42804468,174.25,174.13,1.2601]
[1641207300342,20.42804468,174.25,174.13,9.8739]
[1641207301039,20.92804468,174.25,174.13,9.8739]
[1641207303840,20.92804468,174.25,174.13,1.2601]
[1641207309746,20.92804468,174.25,174.13,9.874]
[1641207311467,20.92804468,174.25,174.13,1.2601]
[1641207312268,22.56238945,174.25,174.13,1.2601]
[1641207312971,1.63434477,174.24,174.13,1.2601]
[1641207313168,8.6149,174.2,174.13,1.2601]
[1641207313367,11.40860923,174.2,174.13,1.2601]
[1641207313568,11.66860923,174.2,174.13,1.2601]
[1641207313767,25.05100171,174.19,174.13,1.2601]
[1641207313971,25.31100171,174.19,174.13,1.2601]
[1641207315574,0.26,174.19,174.13,1.2601]
[1641207315771,3.05370923,174.2,174.13,1.2601]
[1641207335727,0.26,174.2,174.13,1.2601]
[1641207335928,39.20027027,174.21,174.13,1.2601]
[1641207337131,41.6799326,174.21,174.13,1.2601]
[1641207337934,39.20027027,174.21,174.13,1.2601]
[1641207339037,41.56910554,174.21,174.13,1.2601]
[1641207342336,42.06910554,174.21,174.11,8.6149]
[1641207343141,43.31240554,174.21,174.11,8.6149]
[1641207343338,42.81240554,174.21,174.11,8.6149]
[1641207344340,42.81240554,174.21,174.12,1.2312]
[1641207345544,42.81240554,174.21,174.09,29.30796143]
[1641207345741,42.81240554,174.21,174.1,0.26]
[1641207346143,42.81240554,174.21,174.1,1.5979]
[1641207346342,42.81240554,174.21,174.1,9.9532]
[1641207346543,42.81240554,174.21,174.1,10.2132]
[1641207347343,42.81240554,174.21,174.1,9.9532]
[1641207347745,43.31240554,174.21,174.1,9.9532]
[1641207348546,43.31240554,174.21,174.1,10.2132]
[1641207348947,42.81240554,174.21,174.1,10.2132]
[1641207349147,34.19800554,174.21,174.1,10.2132]
[1641207351453,42.81280554,174.21,174.1,10.2132]
[1641207354756,8.1,174.2,174.1,9.9532]
[1641207354982,8.1,174.2,174.07,17.2219]
[1641207354983,8.6,174.2,174.07,17.2219]
[1641207355183,1.42669368,174.19,174.07,8.6054]
[1641207355385,3.05403392,174.13,174.06,1.2707]
[1641207355583,3.31403392,174.13,174.06,1.2707]
[1641207356082,3.31403392,174.13,174.06,9.888]
[1641207356285,3.31403392,174.13,174.06,1.2707]
[1641207356488,0.26,174.13,174.06,1.2707]
[1641207356890,76.374,174.17,174.06,1.2707]
[1641207357088,1.63434477,174.18,174.06,11.31469368]
[1641207357286,1.63434477,174.18,174.06,19.41469368]
[1641207357487,2.98426307,174.17,174.06,19.41469368]
[1641207357989,30.17394898,174.17,174.06,19.67469368]
[1641207358487,30.43394898,174.17,174.06,19.67469368]
[1641207362593,30.43394898,174.17,174.06,18.248]
[1641207365093,30.43394898,174.17,174.06,17.988]
[1641207365692,39.05054898,174.17,174.06,17.988]
[1641207366693,39.05054898,174.17,174.06,18.248]
[1641207368996,30.43394898,174.17,174.06,18.248]
[1641207370096,39.05064898,174.17,174.06,18.248]
[1641207370296,39.05064898,174.17,174.06,17.988]
[1641207370498,1.2308,174.16,174.06,17.988]
[1641207370897,1.4908,174.16,174.06,17.988]
[1641207371297,10.1079,174.16,174.06,17.988]
[1641207371898,30.17394898,174.17,174.06,17.988]
[1641207373100,30.17394898,174.17,174.06,18.248]
[1641207373301,30.43394898,174.17,174.06,18.248]
[1641207378015,30.43394898,174.17,174.06,17.988]
[1641207378309,31.74304898,174.17,174.06,17.988]
[1641207379509,31.74304898,174.17,174.06,18.248]
[1641207381411,31.74304898,174.17,174.06,17.988]
[1641207381611,40.35974898,174.17,174.06,17.988]
[1641207382011,40.35974898,174.17,174.06,9.888]
[1641207382212,40.85974898,174.17,174.06,1.2707]
[1641207384816,40.35974898,174.17,174.06,1.2707]
[1641207385116,40.85974898,174.17,174.06,1.2707]
[1641207385315,40.35974898,174.17,174.06,1.2707]
[1641207385517,40.35974898,174.17,174.06,9.8879]
[1641207386117,31.48304898,174.17,174.06,11.57459368]
[1641207387418,31.74304898,174.17,174.06,11.57459368]
[1641207387818,31.74304898,174.17,174.06,10.1479]
[1641207391047,31.74304898,174.17,174.06,9.8879]
[1641207391247,40.35954898,174.17,174.06,9.8879]
[1641207391447,40.85954898,174.17,174.06,9.8879]
[1641207391849,40.35954898,174.17,174.06,9.8879]
[1641207392048,40.85954898,174.17,174.06,9.8879]
[1641207392250,40.35954898,174.17,174.06,9.8879]
[1641207395856,48.95954898,174.17,174.06,1.2707]
[1641207396855,48.45954898,174.17,174.06,1.2707]
[1641207397356,48.95954898,174.17,174.06,1.2707]
[1641207397555,48.45954898,174.17,174.06,1.2707]
[1641207398356,48.45954898,174.17,174.06,9.8881]
[1641207398759,48.95954898,174.17,174.06,9.8881]
[1641207399757,48.45954898,174.17,174.06,9.8881]
[1641207399959,48.95954898,174.17,174.06,9.8881]
[1641207402364,48.95954898,174.17,174.06,1.2707]
[1641207409966,48.95954898,174.17,174.03,9.9294]
[1641207410466,48.95954898,174.17,174.04,1.3198]
[1641207412569,50.59389375,174.17,174.04,1.3198]
[1641207415271,50.59389375,174.17,174.04,9.9382]
[1641207416872,50.33389375,174.17,174.04,9.9382]
[1641207417076,50.33389375,174.17,174.04,10.1982]
[1641207417473,48.69954898,174.17,174.04,10.1982]
[1641207419574,48.95954898,174.17,174.04,10.1982]
[1641207420073,40.85954898,174.17,174.06,8.6171]
[1641207420875,40.85954898,174.17,174.07,1.3036]
[1641207423604,40.85954898,174.17,174.07,9.9206]
[1641207424007,40.35954898,174.17,174.07,9.9206]
[1641207429107,40.35954898,174.17,174.07,1.3036]
[1641207429306,40.85954898,174.17,174.07,1.3036]
[1641207429709,40.35954898,174.17,174.07,1.3036]
[1641207431610,40.85954898,174.17,174.07,1.3036]
[1641207431809,40.35954898,174.17,174.07,1.3036]
[1641207432010,38.79044898,174.17,174.07,1.3036]
[1641207432210,30.17394898,174.17,174.07,11.60679368]
[1641207433611,30.43394898,174.17,174.07,11.60679368]
[1641207435413,30.43394898,174.17,174.07,19.70679368]
[1641207441320,30.43394898,174.17,174.07,19.44679368]
[1641207441522,30.43394898,174.17,174.07,9.9201]
[1641207441724,39.05044898,174.17,174.07,1.3036]
[1641207443122,1.2732,174.16,174.07,1.3036]
[1641207443321,9.8905,174.16,174.07,9.9205]
[1641207443520,10.1505,174.16,174.07,9.9205]
[1641207446024,10.1505,174.16,174.07,1.3036]
[1641207448426,10.6505,174.16,174.07,1.3036]
[1641207448825,10.1505,174.16,174.07,1.3036]
[1641207450530,9.8905,174.16,174.07,9.9205]
[1641207450928,1.2732,174.16,174.07,9.9205]
[1641207451129,30.17394898,174.17,174.07,10.1805]
[1641207452831,30.17394898,174.17,174.08,8.1]
[1641207453033,30.17394898,174.17,174.08,8.36]
[1641207453233,30.17394898,174.17,174.09,8.6156]
[1641207453432,30.43394898,174.17,174.09,8.6156]
[1641207453632,30.43394898,174.17,174.09,8.8756]
[1641207453835,30.17394898,174.17,174.09,8.8756]
[1641207454033,30.17394898,174.17,174.09,10.1239]
[1641207455031,30.43394898,174.17,174.09,10.1239]
[1641207458954,30.43394898,174.17,174.09,17.9639]
[1641207459755,30.43394898,174.17,174.09,9.8639]
[1641207463458,30.17394898,174.17,174.09,10.1239]
[1641207464067,30.17394898,174.17,174.09,9.8639]
[1641207464869,30.43394898,174.17,174.09,9.8639]
[1641207465271,39.05034898,174.17,174.09,1.2483]
[1641207468479,39.55034898,174.17,174.09,1.2483]
[1641207473382,39.05034898,174.17,174.09,1.2483]
[1641207473783,3.24426307,174.17,174.09,1.2483]
[1641207474688,25.93693368,174.17,174.09,1.2483]
[1641207475308,25.93693368,174.17,174.09,9.8642]
[1641207476611,34.55313368,174.17,174.09,1.2483]
[1641207477012,36.18747845,174.17,174.09,1.2483]
[1641207477710,34.55313368,174.17,174.09,1.2483]
[1641207481718,36.18747845,174.17,174.09,1.2483]
[1641207482318,34.55313368,174.17,174.09,1.2483]
[1641207483217,11.86046307,174.17,174.09,1.2483]
[1641207484117,37.88219077,174.17,174.09,1.2483]
[1641207486820,2.98426307,174.17,174.09,9.864]
[1641207487023,2.98426307,174.17,174.09,10.124]
[1641207491323,2.98426307,174.17,174.15,1.4486976]
[1641207491727,38.56439994,174.16,174.15,1.4486976]
[1641207494128,38.82439994,174.16,174.15,1.4486976]
[1641207498231,5.56439994,174.16,174.15,1.4486976]
[1641207501964,168.10194695,174.24,174.16,34.0]
[1641207502364,168.36194695,174.24,174.16,34.0]
[1641207502963,168.36194695,174.24,174.17,25.97407907]
[1641207503161,2.19798086,174.23,174.17,25.97407907]
[1641207503366,8.6149,174.2,174.17,25.97407907]
[1641207503564,11.26870141,174.2,174.17,25.97407907]
[1641207503765,8.8749,174.2,174.17,25.97407907]
[1641207503965,40.08465496,174.26,174.17,25.97407907]
[1641207504366,8.1,174.26,174.17,25.97407907]
[1641207504565,3.27255496,174.27,174.17,25.97407907]
[1641207504566,3.27255496,174.27,174.17,26.23407907]
[1641207504769,2.22858701,174.26,174.17,26.23407907]
[1641207504967,2.22858701,174.26,174.17,34.84607907]
[1641207505367,2.22858701,174.26,174.18,1.2292]
[1641207505566,10.84008701,174.26,174.18,1.4892]
[1641207506466,2.22858701,174.26,174.18,10.1005]
[1641207508466,2.48858701,174.26,174.18,10.1005]
[1641207508673,2.48858701,174.26,174.18,8.8713]
[1641207508868,2.48858701,174.26,174.18,0.26]
[1641207509070,2.48858701,174.26,174.17,26.23407907]
[1641207509468,11.10028701,174.26,174.17,25.97407907]
[1641207509667,11.10028701,174.26,174.17,26.23407907]
[1641207509869,11.60028701,174.26,174.17,26.23407907]
[1641207511771,11.60028701,174.26,174.24,1.4486976]
[1641207516075,11.10028701,174.26,174.24,1.4486976]
[1641207517376,11.60028701,174.26,174.24,1.4486976]
[1641207517777,11.10028701,174.26,174.24,1.4486976]
[1641207518575,11.60028701,174.26,174.24,1.4486976]
[1641207518975,11.10028701,174.26,174.24,1.4486976]
[1641207519476,11.60028701,174.26,174.24,1.4486976]
[1641207520280,11.60028701,174.26,174.04,8.1]
[1641207520281,70.1,174.25,174.04,8.1]
[1641207520582,2.36811208,174.14,174.05,79.5402]
[1641207520785,2.36811208,174.14,174.06,1.2573]
[1641207521182,2.36811208,174.14,174.08,8.6164]
[1641207521382,2.62811208,174.14,174.07,25.41133057]
[1641207521784,11.24521208,174.14,174.07,25.41133057]
[1641207525994,11.24521208,174.14,174.07,25.67133057]
[1641207526794,11.24521208,174.14,174.07,25.41133057]
[1641207527192,11.74521208,174.14,174.07,25.41133057]
[1641207529420,11.24521208,174.14,174.07,25.41133057]
[1641207530221,11.24521208,174.14,174.07,25.67133057]
[1641207530420,11.24521208,174.14,174.07,25.41133057]
[1641207531023,11.74521208,174.14,174.07,25.41133057]
[1641207534824,11.74521208,174.14,174.06,1.2573]
[1641207537131,19.84521208,174.14,174.06,1.2573]
[1641207538136,19.84521208,174.14,174.03,99.19345152]
[1641207538335,19.58521208,174.14,174.03,24.35955152]
[1641207538535,19.58521208,174.14,174.03,24.61955152]
[1641207538935,19.58521208,174.14,174.04,1.2408]
[1641207539635,19.84521208,174.14,174.04,1.2408]
[1641207545465,19.84521208,174.14,174.04,1.5008]
[1641207545765,19.58521208,174.14,174.04,1.2408]
[1641207545965,19.58521208,174.14,174.04,1.5008]
[1641207546384,19.58521208,174.14,174.04,1.2408]
[1641207546981,19.84521208,174.14,174.04,1.2408]
[1641207551193,1.42669368,174.13,173.99,0.79688737]
[1641207551392,8.6207,174.06,173.99,0.79688737]
[1641207552190,8.6207,174.06,173.99,23.94913034]
[1641207553391,2.35940884,174.05,173.99,23.94913034]
[1641207553593,0.26,174.05,173.99,23.94913034]
[1641207553895,8.6218,174.03,173.99,23.94913034]
[1641207554494,36.8377,174.09,173.99,23.94913034]
[1641207554696,2.69037496,174.08,173.99,23.94913034]
[1641207555104,2.95037496,174.08,173.99,23.94913034]
[1641207555301,8.6212,174.04,173.99,23.94913034]
[1641207556408,8.8812,174.04,173.99,23.94913034]
[1641207556604,2.94906632,174.03,173.97,9.9465]
[1641207556803,8.8812,174.04,173.97,9.9465]
[1641207557305,8.8812,174.04,173.97,10.2065]
[1641207557530,8.8812,174.04,173.97,1.5853]
[1641207559133,8.6212,174.04,173.97,1.5853]
[1641207559432,8.6212,174.04,173.97,10.2067]
[1641207561138,8.6212,174.04,173.97,9.9467]
[1641207561639,8.8812,174.04,173.97,9.9467]
[1641207562838,8.6212,174.04,173.97,9.9467]
[1641207563039,8.6212,174.04,173.97,1.3253]
[1641207564142,8.8812,174.04,173.97,1.3253]
[1641207565243,8.8812,174.04,173.97,10.2067]
[1641207565441,8.6212,174.04,173.97,10.2067]
[1641207569449,8.8812,174.04,173.97,10.2067]
[1641207573350,8.6212,174.04,173.97,10.2067]
[1641207574651,8.8812,174.04,173.97,10.2067]
[1641207583565,8.8812,174.04,173.97,9.9467]
[1641207584790,8.8812,174.04,173.97,10.2067]
[1641207585491,74.7523,174.08,173.97,10.2067]
[1641207585693,76.0936,174.15,173.97,18.3067]
[1641207586092,76.0936,174.15,173.98,16.50231238]
[1641207586292,76.0936,174.15,174.06,8.6166]
[1641207586494,8.6167,174.14,174.06,8.8766]
[1641207586695,11.12353548,174.14,174.06,8.8766]
[1641207587294,11.38353548,174.14,174.06,8.8766]
[1641207590098,8.8767,174.14,174.06,8.8766]
[1641207591306,2.71952473,174.13,174.06,10.1733]
[1641207591501,11.33642473,174.13,174.06,10.1733]
[1641207592902,8.8763,174.14,174.06,10.1733]
[1641207593103,8.8763,174.14,174.06,17.5653]
[1641207594404,2.57532429,174.13,174.06,17.5653]
[1641207596307,11.19212429,174.13,174.06,17.5653]
[1641207596513,11.45212429,174.13,174.06,9.9133]
[1641207596712,11.45212429,174.13,174.06,1.2967]
[1641207597916,11.45212429,174.13,174.06,1.5567]
[1641207600329,11.45212429,174.13,174.03,8.6184]
[1641207600531,11.95212429,174.13,174.02,72.17]
[1641207600731,11.45212429,174.13,174.02,72.17]
[1641207601129,11.45212429,174.13,174.03,1.3376]
[1641207601334,11.45212429,174.13,174.04,31.07434414]
[1641207601933,11.95212429,174.13,174.04,31.07434414]
[1641207602134,11.45212429,174.13,174.04,31.07434414]
[1641207602333,11.95212429,174.13,174.04,31.07434414]
[1641207602559,11.19212429,174.13,174.04,31.33434414]
[1641207602757,11.19212429,174.13,174.04,39.95264414]
[1641207602956,11.19212429,174.13,174.04,39.69264414]
[1641207603157,11.69212429,174.13,174.04,39.69264414]
[1641207603358,11.69212429,174.13,174.04,39.95264414]
[1641207603975,11.95212429,174.13,174.05,1.3404]
[1641207604162,8.8768,174.13,174.05,9.9581]
[1641207604369,8.8768,174.13,174.05,10.2181]
[1641207605267,8.6168,174.13,174.05,10.2181]
[1641207605468,8.6164,174.14,174.05,10.2181]
[1641207605769,84.9439,174.2,174.05,11.64479368]
[1641207605967,85.4439,174.2,174.05,11.64479368]
[1641207606168,77.3439,174.2,174.06,8.1]
[1641207606390,76.8439,174.2,174.13,29.60219342]
[1641207606591,87.173,174.21,174.13,29.86219342]
[1641207607597,87.173,174.21,174.13,29.60219342]
[1641207608095,87.433,174.21,174.13,29.86219342]
[1641207608297,87.433,174.21,174.13,38.47579342]
[1641207608698,78.5594,174.21,174.13,38.47579342]
[1641207609095,10.9941173,174.22,174.13,38.47579342]
[1641207610108,11.2541173,174.22,174.13,38.47579342]
[1641207610499,10.9941173,174.22,174.13,38.47579342]
[1641207610698,2.3814173,174.22,174.13,38.47579342]
[1641207611900,2.6414173,174.22,174.13,38.47579342]
[1641207613403,10.9943173,174.22,174.13,38.47579342]
[1641207613803,10.9943173,174.22,174.13,38.21579342]
[1641207614503,11.2543173,174.22,174.13,38.21579342]
[1641207615103,11.2543173,174.22,174.13,38.47579342]
[1641207616204,10.9943173,174.22,174.13,38.47579342]
[1641207616404,2.3814173,174.22,174.14,1.42669368]
[1641207616604,2.3814173,174.22,174.14,1.68669368]
[1641207616805,2.3814173,174.22,174.14,8.8729]
[1641207618206,2.3814173,174.22,174.14,10.2204]
[1641207619104,8.6123,174.23,174.14,10.2204]
[1641207619305,72.9748,174.24,174.14,10.2204]
[1641207619506,81.5865,174.24,174.14,10.2204]
[1641207619706,72.9748,174.24,174.15,1.42669368]
[1641207619905,72.9748,174.24,174.18,8.611]
[1641207620106,2.73684676,174.24,174.18,8.871]
[1641207621811,8.6102,174.28,174.18,8.871]
[1641207622008,8.6102,174.28,174.18,10.29769368]
[1641207622511,154.3574,174.3,174.18,10.29769368]
[1641207622809,3.05420767,174.29,174.18,10.29769368]
[1641207623408,3.05420767,174.29,174.19,9.4473]
[1641207623610,3.05420767,174.29,174.24,8.6082]
[1641207624008,3.05420767,174.29,174.24,8.8682]
[1641207624209,8.6083,174.31,174.24,8.8682]
[1641207624409,81.61266712,174.34,174.24,8.8682]
[1641207624810,80.4825,174.34,174.24,8.8682]
[1641207625010,79.9825,174.34,174.24,8.8682]
[1641207625210,2.17807917,174.33,174.24,8.8682]
[1641207625413,8.6077,174.32,174.24,8.8682]
[1641207626813,8.6077,174.32,174.25,30.77457883]
[1641207627013,88.5897,174.34,174.25,38.02857883]
[1641207627218,1.63016712,174.36,174.25,38.02857883]
[1641207627414,1.63016712,174.36,174.26,1.42669368]
[1641207627613,1.63016712,174.36,174.26,1.68669368]
[1641207627813,77.26143113,174.37,174.26,1.68669368]
[1641207628015,77.26143113,174.37,174.26,2.93009368]
[1641207628218,77.26143113,174.37,174.27,1.42669368]
[1641207628613,75.63126401,174.37,174.27,1.68669368]
[1641207628915,84.23676401,174.37,174.28,8.6059]
[1641207629114,84.23676401,174.37,174.28,8.8659]
[1641207629313,84.23676401,174.37,174.29,31.05649695]
[1641207629513,84.49676401,174.37,174.29,31.31649695]
[1641207629913,84.23676401,174.37,174.29,31.31649695]
[1641207630316,84.23676401,174.37,174.29,31.05649695]
[1641207631517,84.49676401,174.37,174.29,31.31649695]
[1641207631716,84.49676401,174.37,174.29,31.05649695]
[1641207632117,84.23676401,174.37,174.29,31.31649695]
[1641207632419,84.23676401,174.37,174.29,39.92219695]
[1641207633216,11.55526401,174.37,174.29,39.92219695]
[1641207633419,11.55526401,174.37,174.29,39.66219695]
[1641207633816,11.55526401,174.37,174.27,9.9469]
[1641207634023,12.05526401,174.37,174.27,9.9469]
[1641207634622,12.31526401,174.37,174.27,9.9469]
[1641207635222,12.31526401,174.37,174.27,10.2069]
[1641207635424,12.31526401,174.37,174.27,9.9469]
[1641207635623,12.31526401,174.37,174.27,1.3405]
[1641207635826,12.31526401,174.37,174.25,8.6074]
[1641207636026,12.31526401,174.37,174.25,8.8674]
[1641207636226,12.31526401,174.37,174.25,10.29409368]
[1641207636426,12.31526401,174.37,174.26,32.92018863]
[1641207636824,12.31526401,174.37,174.26,34.60688231]
[1641207637425,12.31526401,174.37,174.26,43.21398231]
[1641207638328,12.31526401,174.37,174.26,32.92018863]
[1641207638528,8.1,174.36,174.26,32.92018863]
[1641207638728,8.1,174.36,174.26,31.57838863]
[1641207638931,2.61266879,174.3,174.24,8.6083]
[1641207639530,2.87266879,174.3,174.24,8.6083]
[1641207640552,2.87266879,174.3,174.24,8.8683]
[1641207642764,2.61266879,174.3,174.24,8.8683]
[1641207643566,8.6079,174.32,174.24,8.8683]
[1641207643804,8.8679,174.32,174.24,8.6083]
[1641207643968,8.36,174.32,174.22,30.20666038]
[1641207644365,8.86,174.32,174.22,30.20666038]
[1641207644769,2.97718135,174.31,174.22,30.20666038]
[1641207644967,3.73718135,174.31,174.22,30.20666038]
[1641207645369,8.6103,174.27,174.22,30.20666038]
[1641207645570,0.26,174.27,174.22,30.20666038]
[1641207646171,2.73703296,174.28,174.22,30.20666038]
[1641207646372,0.26,174.28,174.22,30.20666038]
[1641207646575,79.7835,174.31,174.22,30.20666038]
[1641207647370,8.6098,174.28,174.22,30.20666038]
[1641207647772,8.6098,174.28,174.22,30.46666038]
[1641207648473,8.6092,174.3,174.22,39.07586038]
[1641207649075,8.8692,174.3,174.22,39.07586038]
[1641207649675,11.62963,174.3,174.22,39.07586038]
[1641207649875,3.28043,174.3,174.22,39.07586038]
[1641207650475,0.26,174.3,174.22,39.07586038]
[1641207650875,79.2835,174.31,174.22,39.07586038]
[1641207651496,81.54685265,174.31,174.22,39.07586038]
[1641207652995,81.54685265,174.31,174.23,1.3044]
[1641207653197,81.54685265,174.31,174.25,8.6079]
[1641207653596,81.54685265,174.31,174.25,8.8679]
[1641207662912,8.6084,174.32,174.25,8.8679]
[1641207663216,1.63016712,174.36,174.34,20.40791736]
[1641207663512,0.24008522,174.43,174.35,6.06439994]
[1641207663712,0.24008522,174.43,174.35,7.49109362]
[1641207663913,94.0,174.39,174.35,15.85109362]
[1641207664112,94.0,174.39,174.36,1.42669368]
[1641207664315,94.0,174.39,174.37,8.1]
[1641207664512,0.24008522,174.43,174.38,6.06439994]
[1641207664711,0.24008522,174.43,174.39,23.08705309]
[1641207665114,0.24008522,174.43,174.39,24.77374677]
[1641207665512,8.16e-05,174.45,174.39,24.77374677]
[1641207665712,8.16e-05,174.45,174.42,8.5979]
[1641207665912,8.16e-05,174.45,174.43,3.03219997]
[1641207666111,8.16e-05,174.45,174.43,3.29219997]
[1641207666311,0.28779108,174.58,174.43,3.29219997]
[1641207666513,5.19693811,174.58,174.44,9.52669368]
[1641207666711,5.19693811,174.58,174.44,90.15009368]
[1641207666712,7.65737511,174.58,174.44,90.15009368]
[1641207666914,7.65737511,174.58,174.44,90.41009368]
[1641207667311,2.74822808,174.58,174.44,90.41009368]
[1641207667714,3.24822808,174.58,174.44,90.41009368]
[1641207668116,0.28779108,174.58,174.44,90.41009368]
[1641207668317,0.28779108,174.58,174.45,1.42669368]
[1641207668516,0.28779108,174.58,174.51,8.5943]
[1641207668717,0.28779108,174.58,174.51,15.8623]
[1641207668916,0.28779108,174.58,174.51,16.1223]
[1641207670619,0.28779108,174.58,174.51,8.8543]
[1641207671620,0.28779108,174.58,174.51,8.5943]
[1641207671821,0.28779108,174.58,174.5,10.15425075]
[1641207672821,0.28779108,174.58,174.48,4.3717174]
[1641207673422,8.88449108,174.58,174.48,4.3717174]
[1641207673622,9.14449108,174.58,174.48,4.6317174]
[1641207673822,9.64449108,174.58,174.48,4.6317174]
[1641207674923,0.78779108,174.58,174.48,13.2274174]
[1641207675327,0.28779108,174.58,174.48,27.10995075]
[1641207675527,0.28779108,174.58,174.48,27.12995075]
[1641207675929,0.28779108,174.58,174.49,5.78253335]
[1641207676132,3.13787667,174.61,174.58,0.00048981]
[1641207676329,3.13787667,174.61,174.52,51.5938]
[1641207676529,3.13787667,174.61,174.52,51.8538]
[1641207676729,0.5,174.61,174.52,51.8538]
[1641207676929,88.9366,174.64,174.52,51.8538]
[1641207677847,2.24463618,174.63,174.52,8.8538]
[1641207678047,8.5946,174.62,174.52,0.26]
[1641207678451,9.3546,174.62,174.51,4.6317174]
[1641207678648,9.3546,174.62,174.51,12.7317174]
[1641207678850,9.3546,174.62,174.51,8.36]
[1641207679251,9.3546,174.62,174.51,16.9541]
[1641207679851,9.3546,174.62,174.51,8.8541]
[1641207681356,9.3546,174.62,174.52,0.02]
[1641207682854,8.8546,174.62,174.52,0.02]
[1641207683953,37.11428017,174.62,174.52,0.02]
[1641207684153,9.3546,174.62,174.52,0.02]
[1641207684353,8.8546,174.62,174.52,0.02]
[1641207684653,9.3546,174.62,174.52,0.02]
[1641207685462,8.8546,174.62,174.52,0.02]
[1641207687364,8.5946,174.62,174.52,0.02]
[1641207687665,2.24463618,174.63,174.52,8.6136]
[1641207687867,2.24463618,174.63,174.53,8.1]
[1641207688070,2.24463618,174.63,174.53,8.36]
[1641207688472,2.74463618,174.63,174.53,8.36]
[1641207688670,2.74463618,174.63,174.53,8.1]
[1641207688871,3.00463618,174.63,174.53,8.1]
[1641207689271,2.50463618,174.63,174.53,8.1]
[1641207689471,11.09863618,174.63,174.53,8.1]
[1641207690077,8.594,174.63,174.53,8.36]
[1641207690273,79.8428,174.64,174.53,15.724]
[1641207690500,79.8428,174.64,174.54,1.42669368]